[Event "SixDays One Year GM-B 2023"]
[Site "Budapest"]
[Date "2023.09.23"]
[Round "9.5"]
[White "Yeganegi, Barad"]
[Black "Xiao, Tong"]
[Result "0-1"]
[ECO "E46"]
[WhiteElo "2261"]
[BlackElo "2452"]
[Annotator "RC"]
[PlyCount "96"]
[EventDate "2023.09.18"]
[EventType "tourn"]
[EventCountry "HUN"]
[SourceTitle "playchess.com"]
[Source "ChessBase"]
[SourceQuality "1"]
[TimeControl "5400+30"]

1. d4 {[%emt 0:00:02]} Nf6 {[%emt 0:00:13]} 2. c4 {[%emt 0:00:03]} e6 {[%emt 0:00:06]} 3. Nc3 {[%emt 0:00:05]} Bb4 {[%emt 0:00:07]} 4. e3 {[%emt 0:00:08]} O-O {[%emt 0:00:09]} 5. Bd2 {[%emt 0:00:13]} b6 {[%emt 0:00:33]} 6. Nf3 {[%emt 0:00:18]} Bb7 {[%emt 0:00:33]} 7. Bd3 {[%emt 0:00:20]} d6 {[%emt 0:00:40]} 8. a3 {[%emt 0:03:40]} Bxc3 {[%emt 0:00:07]} 9. Bxc3 {[%emt 0:00:07]} Ne4 {[%emt 0:01:10]} 10. O-O {[%emt 0:11:43]} Nxc3 {[%emt 0:01:30]} 11. bxc3 {[%emt 0:00:09]} Nd7 {[%emt 0:03:33]} 12. e4 {[%emt 0:10:02]} e5 {[%emt 0:00:31]} 13. Nd2 {[%emt 0:06:28]} Qe7 {[%emt 0:25:00]} 14. f4 {[%emt 0:23:47]} c5 {[%emt 0:00:52]} 15. fxe5 {[%emt 0:12:45]} cxd4 {[%emt 0:00:09]} 16. cxd4 {[%emt 0:00:10]} dxe5 {[%emt 0:00:05]} 17. d5 {[%emt 0:00:13]} Nc5 {[%emt 0:01:23]} 18. Nb3 {[%emt 0:03:59]} Ba6 {[%emt 0:03:18]} 19. Nxc5 {[%emt 0:09:51]} Qxc5+ {[%emt 0:00:02]} 20. Kh1 {[%emt 0:00:09]} Bxc4 {[%emt 0:05:00]} 21. Bxc4 {[%emt 0:00:40]} Qxc4 {[%emt 0:00:01]} 22. Qf3 {[%emt 0:00:57]} f5 {[%emt 0:09:27]} 23. exf5 {[%emt 0:02:47]} e4 {[%emt 0:00:05]} 24. Qg4 {[%emt 0:02:08]} Qxd5 {[%emt 0:00:14]} 25. Rad1 {[%emt 0:03:00]} Qe5 {[%emt 0:00:46]} 26. Rd7 {[%emt 0:00:57]} Rf7 {[%emt 0:00:24]} 27. Rxf7 {[%emt 0:02:12]} Kxf7 {[%emt 0:00:01]} 28. Rd1 {[%emt 0:00:32]} Re8 {[%emt 0:03:35]} 29. Qh5+ {[%emt 0:03:17]} Kg8 {[%emt 0:00:18]} 30. Rd5 {[%emt 0:01:42]} Qe7 {[%emt 0:00:06]} 31. h3 {[%emt 0:02:37]} e3 {[%emt 0:01:21]} 32. Qe2 {[%emt 0:00:46]} Qxa3 {[%emt 0:05:56]} 33. Kh2 {[%emt 0:00:28]} Qe7 {[%emt 0:00:18]} 34. Rd3 {[%emt 0:00:32]} Qe5+ {[%emt 0:00:42]} 35. g3 {[%emt 0:00:04]} Kh8 {[%emt 0:00:51]} 36. f6 {[%emt 0:00:37]} gxf6 {[%emt 0:02:53]} 37. Kg2 {[%emt 0:00:35]} Qe4+ {[%emt 0:00:09]} 38. Kh2 {[%emt 0:00:03]} Qxd3 {[%emt 0:00:55]} 39. Qxd3 {[%emt 0:00:04]} e2 {[%emt 0:00:03]} 40. Qc3 {[%emt 0:00:11]} e1=Q {[%emt 0:00:07]} 41. Qxf6+ {[%emt 0:00:04]} Kg8 {[%emt 0:00:04]} 42. Qg5+ {[%emt 0:00:05]} Kf7 {[%emt 0:00:07]} 43. Qf5+ {[%emt 0:00:15]} Ke7 {[%emt 0:00:05]} 44. Qxh7+ {[%emt 0:00:02]} Kd6 {[%emt 0:00:18]} 45. Qd3+ {[%emt 0:00:16]} Kc7 {[%emt 0:00:05]} 46. Qc4+ {[%emt 0:00:05]} Kb8 {[%emt 0:00:02]} 47. h4 {[%emt 0:00:16]} Re2+ {[%emt 0:00:13]} 48. Kh3 {[%emt 0:00:03]} Qh1+ {[%emt 0:00:03]} 0-1